{"text_format":"1","workbook":"xlsx","n_sheets":3,"sheets":["Basis gegevens","Aanvraag inhuur","Offerteformulier"],"not_rendered":{"charts":0,"images":3,"macros":1,"external_links":1,"defined_names":0,"comments":2,"pivot_tables":0},"unopened":[],"bounds":{"document_bytes":16777216,"sheet_cells":100000,"rows_first":2000,"rows_last":500,"rows_between":2000,"halvings":0,"cell_chars":16384,"cell_head_chars":4096},"cells_cut":0,"cells_raw":0,"read":"whole","date_system":"1900"}

{"sheet":"Basis gegevens","index":0,"n_rows":33,"n_cols":3,"rows_kept":33,"cut":false,"hidden":true,"merged":[[0,0,0,2]]}
["Basis gegevens Inhuurformulier"]
["Raamovereenkomsten",null,"Percelen"]
["HR Professionals",null,1]
["Financieel Advies",null,2]
["Auditdiensten",null,3]
["Inkoopadvies",null,4]
["Juridisch Capaciteit Bestuursrecht",null,5]
["Juridisch capaciteit Arbeidsrecht en bedrijfsrecht"]
["Intrim-management en Organisatieadvies (IMOA)",null,"Functieniveau"]
["Communicatie Professionals ",null,"Senior+"]
["Webredactie Professionals",null,"Senior"]
["Communicatie woordvoerders ",null,"Medior"]
["Arbeidsparticipanten",null,"Junior"]
[]
[]
["Departement",null,"Keuze mogelijkheden"]
["Ministerie van Onderwijs Cultuur en Wetenschap",null,"Ja"]
["Ministerie van Justitie en Veiligheid",null,"Nee"]
[null,null,"N.V.T."]
["Deelnemende dienst",null,"Indifferent"]
["Dienst Uitvoering Onderwijs"]
["Centraal Justitieel Incassobureau",null,"Screeningsprofiel VOG"]
["Rijksdienst voor het Cultureel Erfgoed",null,"11, 12 en 41"]
["Inspectie van het Onderwijs",null,55]
["Bestuursdepartement"]
["Nationaal Archief"]
["College voor Toetsen en Examens"]
["Erfgoedinspectie"]
["Adviesraad voor wetenschap, technologie en innovatie"]
["Raad voor Cultuur"]
["Raad van State"]
["Onderwijsraad"]
["Unesco"]

{"sheet":"Aanvraag inhuur","index":1,"n_rows":141,"n_cols":11,"rows_kept":141,"cut":false,"hidden":false,"merged":[[122,1,123,2],[102,3,103,7],[108,3,108,7],[129,0,131,0],[140,2,142,7],[111,2,111,6],[19,0,19,8],[29,0,29,8],[37,0,37,8],[92,0,92,8],[101,5,101,7],[100,0,100,7],[110,1,111,1],[77,2,77,4],[77,6,77,7],[71,6,71,7],[72,2,72,4],[72,6,72,7],[73,2,73,4],[73,6,73,7],[66,2,66,4],[33,2,33,7],[125,0,125,8],[71,1,71,4],[66,6,66,7],[67,2,67,4],[67,6,67,7],[68,2,68,4],[68,6,68,7],[62,2,62,4],[62,6,62,7],[63,2,63,4],[63,6,63,7],[64,2,64,4],[64,6,64,7],[70,0,70,8],[78,2,78,4],[78,6,78,7],[80,2,80,4],[80,6,80,7],[81,2,81,4],[81,6,81,7],[74,2,74,4],[76,2,76,4],[76,6,76,7],[74,6,74,7],[75,6,75,7],[101,3,101,4],[86,2,86,4],[86,6,86,7],[82,2,82,4],[82,6,82,7],[84,2,84,4],[84,6,84,7],[85,2,85,4],[85,6,85,7],[97,2,97,5],[94,3,94,6],[95,3,95,6],[25,0,25,1],[40,6,40,7],[45,6,45,7],[41,6,42,7],[39,6,39,7],[34,0,34,1],[31,0,31,1],[35,6,35,7],[51,0,51,8],[31,2,31,7],[35,0,35,1],[35,3,35,5],[27,0,27,1],[27,2,27,7],[33,0,33,1],[25,2,25,7],[135,4,135,6],[5,0,5,1],[2,0,2,1],[20,0,20,1],[21,0,21,1],[23,0,23,1],[52,6,52,7],[57,2,57,4],[57,6,57,7],[58,2,58,4],[58,6,58,7],[59,2,59,4],[59,6,59,7],[53,2,53,4],[53,6,53,7],[54,6,54,7],[21,2,21,7],[55,6,55,7],[54,2,54,4],[88,2,88,7],[90,2,90,7],[23,2,23,7],[55,2,55,4],[47,6,47,7],[0,0,0,1],[13,0,13,1],[14,0,14,1],[15,0,15,1],[17,0,17,1],[13,2,13,6],[14,2,14,6],[15,2,15,6],[17,2,17,6],[9,0,9,1],[5,2,5,7],[10,0,10,8],[7,0,7,1],[11,0,11,8],[1,1,1,5],[9,2,9,7],[7,2,7,7]]}
["Aanvraag Inhuurformulier",null,null,null,null,null,null,null,"1.6"]
["Referentienummer"]
["(in te vullen door de inhuurdesk)"]
[]
["Gewijzigde herhalingsaanvraag",null,"Nee"]
["Indien ja, gebaseerd op \nreferentienummer:"]
[]
["Raamovereenkomst:"]
[]
["Voor vragen neem contact op met de inhuuroffice:",null,"iuc-inhuur@iuc-noord.nl"]
["Velden met een * zijn verplicht in te vullen door inhurende manager. \nWitte velden zo volledig mogelijk invullen en de inhuuraanvraag naar IUC-Inhuur verzenden."]
["AANVRAGER"]
[]
["Departement*"]
["Deelnemende dienst*"]
["Afdeling/Bedrijfsonderdeel*"]
[]
["Inhurend manager*"]
[]
["OPDRACHT"]
[]
["Opdrachtbeschrijving*:\nwerkzaamheden of\nprestatiedoelstelling van de opdracht"]
[]
["Aard van de relatie opdrachtgever – opdrachtnemer:\n\nKan de opdracht volledig zelfstandig uitgevoerd worden?\n\nIs er sprake van een aansturing onder leiding en toezicht?\n\nIs de sturing alleen op het resultaat (het wat?) of ook op de persoon (het hoe?)?"]
[]
["Achtergrond opdracht*"]
[]
["Organisatorische context en cultuur*"]
[]
["FUNCTIE GEGEVENS"]
[]
["Functienaam* (roepnaam)"]
[]
["Functieprofiel van uit de ROK (indien van toepassing)"]
[]
["Functieniveau*",null,null,"Aantal FTE's aanvraag*",null,null,1]
[]
["WEGING GUNNINGSCRITERIA"]
[]
["Gunningscriteria*","Initieel Tarief",20,"] Beoordeling aan de hand",null,null,"Prijscriteria"]
[null,"Verlenging uurtarief",0,"  van het aangeboden uurtarief",null,null,{"$f":"(C40+C41)/100","v":0.2}]
[null,"Aanvullende werkervaring",20,"] Basis beoordeling",null,null,"Kwalitatieve criteria"]
[null,"Aanvullende Kennis en certificaten",15,"] naar aanleiding van"]
[null,"Competenties kandidaat",5,"] nadere offerte (CV) + "]
[null,"Overige functiewensen",0,"] offerteformulier"]
[null,"Beschikbaarheid startdatum",0,"]",null,null,{"$f":"(C42+C43+C44+C45+C46+C47+C48+C49)/100","v":0.8}]
[null,"Beschikbaarheid aantal uur",0,"]"]
[null,"Kandidaat begrijpt de opdracht",20,"] Beoordeling d.m.v."]
[null,"Kandidaat past bij de organisatie",20,"] selectiegesprek"]
[null,"Totaal",{"$f":"SUM(C40:C49)","v":100}]
[]
["   FUNCTIE EISEN"]
[null,null,"Relevante werkervaring",null,null,null,"Bewezen aantal jaar"]
[null,"Algemeen werkervaring"]
[]
[]
[]
[null,"Specifiek werkervaring ",null,null,null,null,null,null,null,null,3]
[]
[]
[]
[null,null,"Opleiding, Kennis en Certificaten"]
[null,"Opleiding en Certificaten",null,null,null,null,null,null,null,null,3]
[]
[]
[]
[null,"Overige vereiste kennisgebieden"]
[null,null,null,null,null,null,null,null,null,null,3]
[]
[]
["   FUNCTIE WENSEN"]
[null,null,null,null,null,null,"Gewenste aantal jaar"]
[null,"Aanvullende werkervaring ",null,null,null,null,null,null,null,null,1]
[]
[]
[]
[null,"Aanvullende Kennis en certificaten"]
[]
[]
[]
[null,"Competenties kandidaat"]
[]
[]
[]
[null,"Overige functiewensen"]
[]
[]
[]
[null,"Toelichting beschikbaarheid startdatum\n(verplicht indien meetellend voor gunning) "]
[]
[null,"Toelichting beschikbaarheid \naantal uur\n(verplicht indien meetellend voor gunning) "]
[]
["          INZET GEGEVENS"]
[]
["Inzetgegevens","Geplande startdatum*",null,"initiële inhuurtermijn in weken:  ",null,null,null,{"$f":"((C96-C95)/7)","v":0}]
[null,"Initiële einddatum*",null,"initiële inhuurtermijn in maanden:  ",null,null,null,{"$f":"((C96-C95)/7)/4.3","v":0}]
[]
[null,"Indien niet van te voren in te vullen, geef hier dan een indicatie m.b.t. de duur van de opdracht."]
[]
[null,"Optie op verlenging*"]
["Verlengingsinformatie gebaseerd op periode(s) of Verlengingsinformatie gebaseerd op een project"]
[null,"Maximaal aantal verlengingen",null,"Geplande einddatum project: "]
[null,"Termijn per verlenging in maanden"]
[]
[null,"Uren per week*"]
[null,"Max. aantal uren initiële inhuurtermijn:",{"$f":"H95*C105","v":0}]
[]
[null,"Tariefsindicatie*",null,"Indien leeg, zie ROK voor de gemaakte afspraken."]
[null,"Eventueel maximum uurtarief",null," Indien ingevuld is het max. uurtarief een eis (Knock-out criteria)."]
[]
[null,"Vergoeding dienstreizen inbegrepen\nin tarief?*\nToelichting:","Ja"]
[]
[]
[null,"Postcode hoofdstandplaats*"]
[null,"Naam hoofdstandplaats*"]
[null,"Extra standplaats(en)"]
[]
[null,"Screeningsitems VOG*"]
[null,"VOG aanwezig voor start inzet*"]
[]
[null,"Max. aantal CV's per opdrachtnemer*"]
[]
[null,"Opdrachtgever gaat akkoord met de vermelding van de organisatienaam bij het werven van Kandidaten door Opdrachtnemer via social media"]
[null,null,null,null,"Ja"]
[]
["         PLANNING"]
[]
["Planning *in te vullen door de inhuuroffice",null,"Datum"]
[null,"Publicatie aanvraag*"]
[]
[null,"Eindmoment stellen van vragen*"]
[null,"Eindmoment beantwoording vragen*"]
[]
[null,"Indienen offertes"]
[]
[null,"Data interviews",null,"t/m"]
[]
[null,"Streefdatum mededeling gunning*"]
[]
[null,"Spoedaanvraag","Nee"]
[null,"Toelichting spoedaanvraag"]

{"sheet":"Offerteformulier","index":2,"n_rows":96,"n_cols":11,"rows_kept":96,"cut":false,"hidden":false,"merged":[[0,0,0,11],[1,0,1,2],[1,3,1,8],[4,6,4,8],[7,4,7,8],[8,1,8,3],[8,4,8,5],[8,7,8,8],[19,1,19,2],[19,3,19,4],[21,1,21,2],[21,3,21,5],[23,0,23,2],[23,4,23,10],[11,0,11,11],[13,0,13,2],[13,3,13,5],[15,3,15,5],[17,1,17,2],[17,3,17,4],[29,3,29,5],[31,0,31,2],[31,3,31,10],[33,4,33,8],[33,9,33,10],[35,0,35,11],[25,0,25,2],[25,3,25,5],[25,6,25,8],[25,9,25,10],[27,1,27,2],[27,4,27,5],[27,6,27,8],[27,9,27,10],[39,2,39,3],[39,5,39,6],[39,8,40,9],[40,2,40,3],[40,5,40,6],[41,2,41,3],[41,5,41,6],[37,2,37,3],[37,5,37,6],[37,8,37,9],[38,2,38,3],[38,5,38,6],[38,8,38,9],[45,2,45,3],[45,5,45,6],[45,8,45,9],[46,2,46,3],[46,5,46,6],[47,2,47,3],[47,5,47,6],[47,8,47,9],[42,2,42,3],[42,5,42,6],[43,2,43,3],[43,5,43,6],[43,8,43,9],[44,2,44,3],[44,5,44,6],[58,1,58,3],[58,4,58,10],[59,1,59,3],[59,4,59,10],[60,1,60,3],[60,4,60,10],[49,0,49,11],[51,2,51,3],[53,2,53,3],[55,0,55,11],[57,2,57,3],[57,4,57,9],[65,1,65,3],[65,4,65,10],[67,2,67,3],[67,4,67,9],[68,1,68,3],[68,4,68,10],[62,2,62,3],[62,4,62,9],[63,1,63,3],[63,4,63,10],[64,1,64,3],[64,4,64,10],[73,1,73,3],[73,4,73,10],[75,2,75,3],[75,4,75,9],[76,1,76,3],[76,4,76,10],[69,1,69,3],[69,4,69,10],[70,1,70,3],[70,4,70,10],[72,2,72,3],[72,4,72,9],[95,0,95,11],[85,2,85,3],[87,0,87,11],[89,1,89,10],[91,0,91,11],[93,2,93,3],[93,4,93,6],[78,2,78,3],[78,4,78,9],[79,1,79,3],[79,4,79,10],[81,0,81,11],[83,2,83,3]]}
["Offerteformulier IUC-Noord Inhuuroffice"]
["Referentienummer:",null,null,{"$f":"'Aanvraag inhuur'!B2","v":0}]
[]
[]
[null,"Voor vragen neem contact op met de inhuuroffice van IUC-Noord",null,null,null,null,"iuc-inhuur@iuc-noord.nl"]
[null,"*Witte velden volledig invullen en dit formulier bijvoegen in CTM bij uw aanbieding als PDF."]
[]
[null,"Functie:",null,null,{"$f":"'Aanvraag inhuur'!C32","v":0}]
[null,"Sluitingsmoment indienen van offertes:",null,null,{"$f":"'Aanvraag inhuur'!C134","v":"00:00:00"},null,"voor ","12:00:00"]
[]
[]
["AANBIEDING ALGEMEEN"]
[" Opdrachtnemer"]
["Hoofdaannemer:"]
[]
[null,null,"Onderaannemer:"]
[]
[null,"Contactpersoon: "]
[]
[null,"Telefoonnr.: "]
[]
[null,"E-mailadres: "]
[]
[" Aanbieding",null,null,null,"  Let op! Doet u meer aanbiedingen dan gevraagd dan worden deze ter zijde gelegd."]
[]
[" Kandidaat                   Naam:",null,null,null,null,null,"Social return kandidaat:"]
[]
[null,"Postcode/Woonplaats: ",null,null,null,null,"Arbeidsverleden kandidaat: "]
[]
[null,null,"Geplande vakanties: "]
[]
[" Keten             Inleenketen:"]
[]
[null,null,"ZZP-er/Loondienst: ",null,"Voldoet uw aanbieding volledig aan de gestelde eisen? "]
[]
["WEGING GUNNINGSCRITERIA"]
[]
[null,null,"Initieel uurtarief",null,{"$f":"'Aanvraag inhuur'!C40","v":20},"] Beoordeling aan de hand",null,null,"Prijscriteria"]
[null,null,"Verlenging uurtarief",null,{"$f":"'Aanvraag inhuur'!C41","v":0},"  van het aangeboden uurtarief",null,null,{"$f":"($E$38+$E$39)/100","v":0.2}]
[null,null,"Aanvullende werkervaring",null,{"$f":"'Aanvraag inhuur'!C42","v":20},"] Basis beoordeling",null,null,"Kwalitatieve criteria"]
[null,null,"Aanvullende kennis en certificaten",null,{"$f":"'Aanvraag inhuur'!C43","v":15},"] naar aanleiding van"]
[null,null,"Competenties kandidaat",null,{"$f":"'Aanvraag inhuur'!C44","v":5},"] nadere offerte (CV +"]
[null,null,"Overige functiewensen",null,{"$f":"'Aanvraag inhuur'!C45","v":0},"] Offerteformulier)"]
[null,null,"Beschikbaarheid startdatum",null,{"$f":"'Aanvraag inhuur'!C46","v":0},"]",null,null,{"$f":"(E40+E41+E42+E43+E44+E45+E46+E47)/100","v":0.8}]
[null,null,"Beschikbaarheid aantal uur",null,{"$f":"'Aanvraag inhuur'!C47","v":0},"]"]
[null,null,"Kandidaat begrijpt de opdracht",null,{"$f":"'Aanvraag inhuur'!C48","v":20},"] Beoordeling d.m.v."]
[null,null,"Kandidaat past bij de organisatie",null,{"$f":"'Aanvraag inhuur'!C49","v":20},"] selectiegesprek"]
[null,null,"Totaal",null,{"$f":"SUM(E38:E47)","v":100},null,null,null,{"$f":"SUM(I39:J44)","v":1}]
[]
["TARIEVEN EN KORTINGEN"]
[]
[null,{"$f":"E38/100","v":0.2},{"$f":"C38","v":"Initieel uurtarief"},null,0]
[]
[null,{"$f":"E39/100","v":0},{"$f":"C39","v":"Verlenging uurtarief"},null,0]
[]
["GUNNINGSCRITERIA"]
[]
[null,{"$f":"E40/100","v":0.2},{"$f":"C40","v":"Aanvullende werkervaring"},null,"Motivatie",null,null,null,null,null,3]
[]
[]
[]
[]
[null,{"$f":"E41/100","v":0.15},{"$f":"C41","v":"Aanvullende kennis en certificaten"},null,"Motivatie",null,null,null,null,null,3]
[]
[]
[]
[]
[null,{"$f":"E42/100","v":0.05},{"$f":"C42","v":"Competenties kandidaat"},null,"Motivatie",null,null,null,null,null,3]
[]
[]
[]
[]
[null,{"$f":"E43/100","v":0},{"$f":"C43","v":"Overige functiewensen"},null,"Motivatie",null,null,null,null,null,1]
[]
[]
[null,{"$f":"E44/100","v":0},{"$f":"C44","v":"Beschikbaarheid startdatum"},null,"Motivatie",null,null,null,null,null,1]
[null,"Is uw kandidaat beschikbaar op de geplande startdatum welke is opgegeven in de offerteaanvraag?"]
[]
[null,{"$f":"E45/100","v":0},{"$f":"C45","v":"Beschikbaarheid aantal uur"},null,"Motivatie",null,null,null,null,null,1]
[null,"Is uw kandidaat beschikbaar voor het aantal uren welke zijn opgegeven in de offerteaanvraag?"]
[]
["SELECTIEGESRPEKKEN"]
[]
[null,{"$f":"E46/100","v":0.2},{"$f":"C46","v":"Kandidaat begrijpt de opdracht"},null,"*Wordt tijdens de selectiegesprekken getoetst"]
[]
[null,{"$f":"E47/100","v":0.2},{"$f":"C47","v":"Kandidaat past bij de organisatie"},null,"*Wordt tijdens de selectiegesprekken getoetst"]
[]
["TOELICHTING AANGEBODEN KANDIDAAT"]
[]
[]
[]
["ONDERTEKENING OFFERTE"]
[]
[null,null,"Handtekening gemandateerde"]
[]
["LAATSTE RIJ"]